{"text_format":"1","workbook":"xlsx","n_sheets":1,"sheets":["Sheet1"],"not_rendered":{"charts":0,"images":0,"macros":0,"external_links":0,"defined_names":6,"comments":0,"pivot_tables":0},"unopened":[],"bounds":{"document_bytes":16777216,"sheet_cells":100000,"rows_first":2000,"rows_last":500,"rows_between":2000,"halvings":0,"cell_chars":16384,"cell_head_chars":4096},"cells_cut":0,"cells_raw":0,"read":"whole","date_system":"1900"}

{"sheet":"Sheet1","index":0,"n_rows":59,"n_cols":16,"rows_kept":59,"cut":false,"hidden":false,"merged":[[12,0,12,9],[8,7,8,9],[8,5,8,6],[11,0,11,1],[10,0,10,1],[9,0,9,1],[8,0,8,1],[9,2,9,4],[8,2,8,4],[10,2,10,4],[11,2,11,4],[10,7,10,9],[9,7,9,9],[42,0,42,9],[41,0,41,9],[40,0,40,9],[39,0,39,9],[23,0,23,9],[24,0,24,9],[22,0,22,9],[38,7,38,8],[14,0,14,9],[38,0,38,5],[30,0,30,9],[31,0,31,9],[32,0,32,9],[13,0,13,9],[0,0,0,9],[1,0,1,9],[2,0,2,9],[11,7,11,9],[6,0,6,4],[7,0,7,4],[3,0,3,9],[4,0,4,4],[5,0,5,4],[4,5,4,9],[5,5,5,9],[6,5,6,9],[7,5,7,9],[10,5,10,6],[9,5,9,6]]}
["EDUCATIONAL ENTERPRISES RECORDING COMPANY\nPost Office Box 291\nDeer Park, Texas 77536\nPhone or Fax: (281) 479-6943 www.eercmusic.com"]
[]
["2019-2020 New Mexico ACDA\nCHOIR ORDER FORM FOR REHEARSAL Email Delivery"]
[]
[]
[]
[]
[]
["Email Addess:",null,null,null,null,"Home Phone:"]
["School PO Number:",null,null,null,null,"School Phone:"]
["Name on Card:",null,null,null,null,"Credit Card Type:"]
["Credit Card #:",null,null,null,null,null,"Expiration :"]
["The credit card owners address is required when using a credit card. Please make sure the address above is correct."]
[]
["ACDA YOUTH MIXED CHOIR REHEARSAL MP3s. "]
[null,null,null,null,null,null,"Quantity","Price",null,"Total",null,null,null,null,null,"     "]
["Soprano",null,null,null,null,null,0,10,null,{"$f":"(G17*H17)","v":0}]
["Alto",null,null,null,null,null,0,10,null,{"$f":"(G18*H18)","v":0}]
["Tenor",null,null,null,null,null,0,10,null,0]
["Bass",null,null,null,null,null,0,10,null,0]
["Mix-Down",null,null,null,null,null,0,10,null,0]
[false,null,null,null,null,null,1,null,"Sub-Total:",{"$f":"SUM(J17:J21)","v":0}]
[]
["ACDA YOUTH TREBLE CHOIR REHEARSAL MP3s. "]
[]
[null,null,null,null,null,null,"Quantity","Price",null,"Total"]
["Soprano",null,null,null,null,null,0,10,null,{"$f":"(G27*H27)","v":0}]
["Alto",null,null,null,null,null,0,10,null,0]
["Mixdown",null,null,null,null,null,0,10,null,0]
[{"$f":"SUM(G22:G29)","v":1},null,null,null,{"$f":"(G22+G30)","v":1},null,{"$f":"SUM(G27:G29)","v":0},{"$f":"CONCATENATE(#REF!,E30)","v":{"$error":"#REF!"}},"Sub-Total:",{"$f":"SUM(J27:J29)","v":0}]
[]
["ACDA ELEMENTARY TREBLE CHOIR REHEARSAL MP3s. "]
[]
[null,null,null,null,null,null,"Quantity","Price",null,"Total"]
["Soprano",null,null,null,null,null,0,10,null,{"$f":"(G35*H35)","v":0}]
["Alto",null,null,null,null,null,0,10,null,0]
["Mixdown",null,null,null,null,null,0,10,null,0]
[{"$f":"SUM(G30:G37)","v":0},null,null,null,{"$f":"(G30+G38)","v":0},null,{"$f":"SUM(G35:G37)","v":0},{"$f":"CONCATENATE(#REF!,E38)","v":{"$error":"#REF!"}},"Sub-Total:",{"$f":"SUM(J35:J37)","v":0}]
["All shipments are sent email.",null,null,null,null,null,null,"GRAND TOTAL",null,{"$f":"(J22+J30+J38)","v":0}]
[]
["Ordering instructions: Fill out the shipping, billing, telephone numbers, and purchase order information.  Select the music"]
["you wish to purchase by entering the quantity of each piece you wish to purchase. We accept money orders, checks and"]
["credit cards, and school purchase orders.  If you are paying by School PO please email the completed form to sales@eercmusic.com."]
["If paying by check or money order please mail the completed form with your payment to Educational Enterprises"]
["Recording Company, PO Box 291, Deer Park, Texas 77536.  Payment must accompany individual orders"]
[null,null,null,null,null,null,null,{"$f":"CONCATENATE(G22,G30)","v":"10"}]
[]
[null,null,"00",0]
[null,null,"01",7.5]
[null,null,"02",8]
[null,null,"03",8.5]
[null,null,"04",9]
[null,null,"05",9.5]
[null,null,"06",10]
[null,null,"07",10.5]
[null,null,"08",11]
[null,null,"09",11.5]
[null,null,"010",12]
[null,null,"011",12.5]